{"text_format":"1","workbook":"xlsx","n_sheets":19,"sheets":["説明","入力フォーム","様式第1号の1","様式2-1","様式2-2","様式3","様式5(1)","様式5(2)","様式5(3)","様式5(4)","様式5(5)","様式4","様式12","様式6(1)","様式6(2)","様式6(3)","様式6(4)","様式6(5)","様式15"],"not_rendered":{"charts":0,"images":2,"macros":1,"external_links":0,"defined_names":18,"comments":0,"pivot_tables":0},"unopened":[],"bounds":{"document_bytes":16777216,"sheet_cells":100000,"rows_first":2000,"rows_last":500,"rows_between":2000,"halvings":0,"cell_chars":16384,"cell_head_chars":4096},"cells_cut":0,"cells_raw":0,"read":"whole","date_system":"1900"}

{"sheet":"説明","index":0,"n_rows":15,"n_cols":13,"rows_kept":15,"cut":false,"hidden":false,"merged":[[14,2,14,19],[0,2,0,19]]}
[null,null,"（使用前1） EXCELファイルをダウンロードした後は、「プロパティ」を開き、セキュリティを「許可する」にチェックを入れて「OK」をしてください。\n（使用前2）「コンテンツの有効化」をクリックしてください。"]
[]
[1,null,"本ファイルは、学位論文提出に関わる各様式を作成するためのものです。"]
[2,null,"本ファイルは、「基礎となる学術論文」最大5編、「参考論文」最大4編を記入することができます。最大数を超える場合は、連大学務係に相談ください。"]
[null,null,"※　様式5と様式6は、「基礎となる学術論文」最大5編に対応するために、それぞれ5シートが準備されています。"]
[3,null,"「入力フォーム」は、各様式を作成するにあたり、必要な情報を記入するシートです。「入力上の注意点」を確認の上、記入ください。"]
[4,null,null,"オレンジ色は、「入力フォーム」に記入の情報以外に、記入が必要な項目を含むシートです。"]
[null,null,null,"薄青色が、記入が必要なセル（項目）になります。"]
[5,null,"「3． 学位論文要旨」では、文字数制限があります。文字数は、「マクロの実行（文字数確認）」をクリックすることで確認することができます。"]
[null,null,"※　学位論文要旨の「様式3」は、2ページとなり、各ページの様式を整えるため、適切に段落を設けてください。改行は「Alt＋Enter」で行い、各段落の文頭には全角１スペースを入れてください。"]
[6,null,"「マクロの実行（他シートへの転記）」をクリックすると、「入力フォーム」の情報が他シートに反映されます。",null,null,null,null,null,null,null,null,null,"←　「入力フォーム」の上段右側の配置"]
[null,null,"※　その際、情報が反映されるまで少し時間がかかります。「マクロの実行」をクリックし、「反映が完了しました」が出るまでしばらくお待ちください。"]
[null,null,"　　「反映が完了しました」が出たら、各シートの書類は完成です。"]
[7,null,"反映させた情報をクリアしたい場合は、「差し込みデータのクリア」をクリックしてください。"]
[8,null,"学位論文申請の際は、以下のものを学務係へ提出してください。\n　・本Excelデータ\n　・各様式の印刷物（特に、様式１号の１、様式６、様式１２、様式１５には署名が必要です。）\n　・学位論文PDFデータ\n　・学位論文の基礎となる学術論文PDFデータ\n　・様式６（承諾書）に係る根拠書類（主指導教員以外の共著者からの承諾が確認できるもの、Eメール等のコピー）\n　・学位論文申請書類チェックリスト"]

{"sheet":"入力フォーム","index":1,"n_rows":121,"n_cols":4,"rows_kept":121,"cut":false,"hidden":false,"merged":[[85,1,85,6],[25,1,25,3],[26,1,26,3],[39,1,39,3],[40,1,40,3],[53,1,53,3],[54,1,54,3],[67,1,67,3],[68,1,68,3],[81,1,81,3],[82,1,82,3]]}
["１．基本情報","記入欄","入力上の注意点","記入例"]
["申請月日",null,"すべての申請書類を学務係へ提出する日付を入力ください","2022-11-22"]
["申請者名",null,"姓名の間に全角スペースを入れてください","鳥取　太郎"]
["専攻名",null,"プルダウンから選んでください。"]
["入学年度",null,"和暦で記載してください","令和３年"]
["入学学期",null,"プルダウンから選んでください。","前期"]
["学位論文題目（日本語）",null,"学名はイタリック（斜体）で入力してください。"]
["学位論文題目（英語）",null,"学名はイタリック（斜体）で入力してください。"]
["主指導教員名",null,"姓名の間に全角スペースを入れてください","湖山　二郎"]
["　所属",null,null,"鳥取大学農学部"]
["　職名",null,null,"教授"]
[]
["２．基礎となる学術論文"]
["【１報目】","記入欄","入力上の注意点","記入例"]
["題目",null,"学名はイタリック（斜体）で入力してください。"]
["著者名",null,"和文の場合）氏名と氏名の間は「・」（中ポツ）\n英文の場合）記入例を参考ください","和文の場合）山田太郎・田中次郎・佐藤花子・山口三郎\n英文の場合）Yamada. T., Tanaka. J., Sato, H. and Yamaguchi. S. （姓,名イニシャル.）"]
["学術雑誌名"]
["巻",null,"数字で入力ください",19]
["号",null,"数字で入力ください。数字は( )書きで入力してください。","(4)"]
["ページ",null,null,"120-130"]
["DOI",null,"DOIがあればリンク付DOIを記入してください","https://doi.org/10.1016/j.cscm.2025.e05494"]
["出版状況",null,"プルダウンから選んでください。投稿中の場合は何も選ばないでください。"]
["発表年月（オンライン出版の場合）",null,"年月を記入してください。（日付は不要）投稿中の場合は空欄のこと。",2020.1]
["受理年月日（受理の場合）",null,"日付まで記入してください。受理を証明する書類を提出してください。投稿中の場合は空欄のこと。","2020.12.12"]
["共著論文の有無",null,"プルダウンから選んでください。「共著論文である」場合は、次の共著論文研究要旨と申請者の研究範囲を記入してください。"]
["共著論文研究要旨"]
["申請者の研究範囲\n\n申請者が担当した研究範囲を必ず記入してください。\n例）申請者は、〇〇〇〇〇を担当した。"]
["【２報目】","記入欄","入力上の注意点","記入例"]
["題目",null,"学名はイタリック（斜体）で入力してください。"]
["著者名",null,"和文の場合）氏名と氏名の間は「・」（中ポツ）\n英文の場合）記入例を参考ください","和文の場合）山田太郎・田中次郎・佐藤花子・山口三郎\n英文の場合）Yamada. T., Tanaka. J., Sato, H. and Yamaguchi. S. （姓,名イニシャル.）"]
["学術雑誌名"]
["巻",null,"数字で入力ください",19]
["号",null,"数字で入力ください。数字は( )書きで入力してください。","(4)"]
["ページ",null,null,"120-130"]
["DOI",null,"DOIがあればリンク付DOIを記入してください","https://doi.org/10.1016/j.cscm.2025.e05494"]
["出版状況",null,"プルダウンから選んでください。投稿中の場合は何も選ばないでください。"]
[" 発表年月（オンライン出版の場合）",null,"年月を記入してください。（日付は不要）投稿中の場合は空欄のこと。",2020.1]
[" 受理年月日（受理の場合）",null,"日付まで記入してください。受理を証明する書類を提出してください。投稿中の場合は空欄のこと。","2020.12.12"]
["共著論文の有無",null,"プルダウンから選んでください。「共著論文である」場合は、次の共著論文研究要旨と申請者の研究範囲を記入してください。"]
["共著論文研究要旨"]
["申請者の研究範囲\n\n申請者が担当した研究範囲を必ず記入してください。\n例）申請者は、〇〇〇〇〇を担当した。"]
["【３報目】","記入欄","入力上の注意点","記入例"]
["題目",null,"学名はイタリック（斜体）で入力してください。"]
["著者名",null,"和文の場合）氏名と氏名の間は「・」（中ポツ）\n英文の場合）記入例を参考ください","和文の場合）山田太郎・田中次郎・佐藤花子・山口三郎\n英文の場合）Yamada. T., Tanaka. J., Sato, H. and Yamaguchi. S. （姓,名イニシャル.）"]
["学術雑誌名"]
["巻",null,"数字で入力ください",19]
["号",null,"数字で入力ください。数字は( )書きで入力してください。","(4)"]
["ページ",null,null,"120-130"]
["DOI",null,"DOIがあればリンク付DOIを記入してください","https://doi.org/10.1016/j.cscm.2025.e05494"]
["出版状況",null,"プルダウンから選んでください。投稿中の場合は何も選ばないでください。"]
[" 発表年月（オンライン出版の場合）",null,"年月を記入してください。（日付は不要）投稿中の場合は空欄のこと。",2020.1]
[" 受理年月日（受理の場合）",null,"日付まで記入してください。受理を証明する書類を提出してください。投稿中の場合は空欄のこと。","2020.12.12"]
["共著論文の有無",null,"プルダウンから選んでください。「共著論文である」場合は、次の共著論文研究要旨と申請者の研究範囲を記入してください。"]
["共著論文研究要旨"]
["申請者の研究範囲\n\n申請者が担当した研究範囲を必ず記入してください。\n例）申請者は、〇〇〇〇〇を担当した。"]
["【４報目】","記入欄","入力上の注意点","記入例"]
["題目",null,"学名はイタリック（斜体）で入力してください。"]
["著者名",null,"和文の場合）氏名と氏名の間は「・」（中ポツ）\n英文の場合）記入例を参考ください","和文の場合）山田太郎・田中次郎・佐藤花子・山口三郎\n英文の場合）Yamada. T., Tanaka. J., Sato, H. and Yamaguchi. S. （姓,名イニシャル.）"]
["学術雑誌名"]
["巻",null,"数字で入力ください",19]
["号",null,"数字で入力ください。数字は( )書きで入力してください。","(4)"]
["ページ",null,null,"120-130"]
["DOI",null,"DOIがあればリンク付DOIを記入してください","https://doi.org/10.1016/j.cscm.2025.e05494"]
["出版状況",null,"プルダウンから選んでください。投稿中の場合は何も選ばないでください。"]
[" 発表年月（オンライン出版の場合）",null,"年月を記入してください。（日付は不要）投稿中の場合は空欄のこと。",2020.1]
[" 受理年月日（受理の場合）",null,"日付まで記入してください。受理を証明する書類を提出してください。投稿中の場合は空欄のこと。","2020.12.12"]
["共著論文の有無",null,"プルダウンから選んでください。「共著論文である」場合は、次の共著論文研究要旨と申請者の研究範囲を記入してください。"]
["共著論文研究要旨"]
["申請者の研究範囲\n\n申請者が担当した研究範囲を必ず記入してください。\n例）申請者は、〇〇〇〇〇を担当した。"]
["【５報目】","記入欄","入力上の注意点","記入例"]
["題目",null,"学名はイタリック（斜体）で入力してください。"]
["著者名",null,"和文の場合）氏名と氏名の間は「・」（中ポツ）\n英文の場合）記入例を参考ください","和文の場合）山田太郎・田中次郎・佐藤花子・山口三郎\n英文の場合）Yamada. T., Tanaka. J., Sato, H. and Yamaguchi. S. （姓,名イニシャル.）"]
["学術雑誌名"]
["巻",null,"数字で入力ください",19]
["号",null,"数字で入力ください。数字は( )書きで入力してください。","(4)"]
["ページ",null,null,"120-130"]
["DOI",null,"DOIがあればリンク付DOIを記入してください","https://doi.org/10.1016/j.cscm.2025.e05494"]
["出版状況",null,"プルダウンから選んでください。投稿中の場合は何も選ばないでください。"]
[" 発表年月（オンライン出版の場合）",null,"年月を記入してください。（日付は不要）投稿中の場合は空欄のこと。",2020.1]
[" 受理年月日（受理の場合）",null,"日付まで記入してください。受理を証明する書類を提出してください。投稿中の場合は空欄のこと。","2020.12.12"]
["共著論文の有無",null,"プルダウンから選んでください。「共著論文である」場合は、次の共著論文研究要旨と申請者の研究範囲を記入してください。"]
["共著論文研究要旨"]
["申請者の研究範囲\n\n申請者が担当した研究範囲を必ず記入してください。\n例）申請者は、〇〇〇〇〇を担当した。"]
[]
["3． 学位論文要旨"]
[" 学位論文要旨\n\n（和文の場合は、2,000字程度（1,800～2,200字）で入力してください。）\n\n\n\n改行は「Alt＋Enter」で行い、各段落の文頭は全角１スペースを入れてください。\n\n記入後、「マクロの実行（文字数確認）」を押して、文字数の確認を行って、規定内の文字数に調整してください。"]
[null,null,"1964 文字"]
[]
["4．参考論文"]
["【１報目】","記入欄","入力上の注意点","記入例"]
["題目",null,"学名はイタリック（斜体）で入力してください。","隠岐諸島に自生するトウテイラン（Veronica ornata Monjuschko）の園芸化を目的とした各種形質の評価"]
["著者名",null,"和文の場合）氏名と氏名の間は「・」（中ポツ）\n英文の場合）記入例を参考ください","和文の場合）山田太郎・田中次郎・佐藤花子・山口三郎\n英文の場合）Yamada. T., Tanaka. J., Sato, H. and Yamaguchi. S. （姓,名イニシャル.）"]
["学術雑誌名",null,null,"園芸学研究"]
["巻",null,"数字で入力ください",19]
["号",null,"数字で入力ください。数字は( )書きで入力してください。","(4)"]
["ページ",null,null,"120-130"]
["発表年月",null,"年月を記入してください。（日付は不要）","2022.12"]
["【２報目】","記入欄","入力上の注意点","記入例"]
["題目",null,"学名はイタリック（斜体）で入力してください。","隠岐諸島に自生するトウテイラン（Veronica ornata Monjuschko）の園芸化を目的とした各種形質の評価"]
["著者名",null,"和文の場合）氏名と氏名の間は「・」（中ポツ）\n英文の場合）記入例を参考ください","和文の場合）山田太郎・田中次郎・佐藤花子・山口三郎\n英文の場合）Yamada. T., Tanaka. J., Sato, H. and Yamaguchi. S. （姓,名イニシャル.）"]
["学術雑誌名",null,null,"園芸学研究"]
["巻",null,"数字で入力ください",19]
["号",null,"数字で入力ください。数字は( )書きで入力してください。","(4)"]
["ページ",null,null,"120-130"]
["発表年月",null,"年月を記入してください。（日付は不要）","2022.12"]
["【３報目】","記入欄","入力上の注意点","記入例"]
["題目",null,"学名はイタリック（斜体）で入力してください。","隠岐諸島に自生するトウテイラン（Veronica ornata Monjuschko）の園芸化を目的とした各種形質の評価"]
["著者名",null,"和文の場合）氏名と氏名の間は「・」（中ポツ）\n英文の場合）記入例を参考ください","和文の場合）山田太郎・田中次郎・佐藤花子・山口三郎\n英文の場合）Yamada. T., Tanaka. J., Sato, H. and Yamaguchi. S. （姓,名イニシャル.）"]
["学術雑誌名",null,null,"園芸学研究"]
["巻",null,"数字で入力ください",19]
["号",null,"数字で入力ください。数字は( )書きで入力してください。","(4)"]
["ページ",null,null,"120-130"]
["発表年月",null,"年月を記入してください。（日付は不要）"]
["【４報目】","記入欄","入力上の注意点","記入例"]
["題目",null,"学名はイタリック（斜体）で入力してください。","隠岐諸島に自生するトウテイラン（Veronica ornata Monjuschko）の園芸化を目的とした各種形質の評価"]
["著者名",null,"和文の場合）氏名と氏名の間は「・」（中ポツ）\n英文の場合）記入例を参考ください","和文の場合）山田太郎・田中次郎・佐藤花子・山口三郎\n英文の場合）Yamada. T., Tanaka. J., Sato, H. and Yamaguchi. S. （姓,名イニシャル.）"]
["学術雑誌名",null,null,"園芸学研究"]
["巻",null,"数字で入力ください",19]
["号",null,"数字で入力ください。数字は( )書きで入力してください。","(4)"]
["ページ",null,null,"120-130"]
["発表年月",null,"年月を記入してください。（日付は不要）","2022.12"]

{"sheet":"様式第1号の1","index":2,"n_rows":53,"n_cols":9,"rows_kept":53,"cut":false,"hidden":false,"merged":[[17,7,17,9],[2,0,2,10],[14,5,14,7],[5,8,5,10],[10,7,10,9],[36,8,36,9],[38,8,38,9],[40,8,40,9],[42,8,42,9],[26,8,26,9],[28,8,28,9],[30,8,30,9],[32,8,32,9],[34,8,34,9]]}
["（様式第１号の１）"]
[]
["学　位　申　請　書"]
[]
[]
[null,null,null,null,null,null,null,"年月日：",{"$f":"入力フォーム!B2","v":"00:00:00"}]
[]
["　　鳥取大学大学院連合農学研究科長　殿"]
[]
[]
[null,null,null,null,null,"主指導教員名",null,{"$f":"入力フォーム!B9","v":0}]
[]
[null,null,null,null,null,"入学年度",null,{"$f":"入力フォーム!B5&\"（\"&入力フォーム!B6&\"）\"","v":"（）"}]
[]
[null,null,null,null,null,"鳥取大学大学院連合農学研究科",null,null,{"$f":"入力フォーム!B4","v":0}]
[]
[]
[null,null,null,null,null,"申請者名",null,{"$f":"入力フォーム!B3","v":0}]
[null,null,null,null,null,"（署名） "]
[]
[null,"　鳥取大学大学院連合農学研究科学位論文審査に関する細則第４条の規定に基づき，下記のとおり"]
[null,"関係書類を添え学位を申請いたします。"]
[]
[]
[null,null,null,null,null,"記"]
[]
[null,"（１）　論文目録：   ",null,null,null,null,null,null,"１部"]
[]
[null,"（２）　学位論文： ",null,null,null,null,null,null,"１部"]
[]
[null,"（３）　学位論文要旨： ",null,null,null,null,null,null,"１部"]
[]
[null,"（４）　学位論文の基礎となる学会誌等に発表された学術論文及び参考論文：",null,null,null,null,null,null,"各１部"]
[]
[null,"（５）　履歴書：",null,null,null,null,null,null,"１部"]
[]
[null,"（６）　共著論文研究要旨：　      ",null,null,null,null,null,null,"各１部"]
[]
[null,"（７）　承諾書：",null,null,null,null,null,null,"各１部"]
[]
[null,"（８）　博士学位論文のインターネット公表に関する届出書：",null,null,null,null,null,null,"１部"]
[]
[null,"（９）　学位論文の公表にかかる申立書：",null,null,null,null,null,null,"１部"]
[]
[null,"（10）　(2),(4)の電子ファイル（PDF形式）"]
[]
[]
["    （備考）:"]
["    1.  参考論文は，ある場合に提出すること。"]
["    2.  共著論文研究要旨及び承諾書は，学術論文が共著である場合に提出すること。"]
["    3.  学術論文が公表予定である場合は，論文原稿と「公表することを予約した掲載承諾書又は出版契約書」"]
["      を提出すること。"]
["　　4.  学位論文の公表にかかる申立書は，該当者のみが提出すること。"]

{"sheet":"様式2-1","index":3,"n_rows":100,"n_cols":12,"rows_kept":100,"cut":false,"hidden":false,"merged":[[1,0,1,18],[10,1,10,17],[16,2,17,17],[4,11,5,18],[6,2,6,15],[13,2,14,17],[23,1,23,3],[39,1,39,3],[55,1,55,3],[82,1,82,3],[97,1,97,3],[91,2,92,17],[48,2,49,17],[45,2,46,17],[25,7,25,12],[41,7,41,12],[57,7,57,12],[73,2,74,17],[88,2,89,17],[29,2,30,17],[76,2,77,17],[61,0,61,18],[18,4,19,17],[35,4,36,17],[51,4,52,17],[84,7,84,12],[99,7,99,12],[80,5,80,17],[95,5,95,17],[64,11,65,18],[66,2,67,17],[70,1,70,17],[32,2,33,17],[78,4,79,17],[93,4,94,17],[20,5,20,17],[37,5,37,17],[53,5,53,17]]}
["（別紙様式第２号）"]
["論  文  目  録"]
[]
[]
[null,null,null,null,null,null,null,null,null," 氏名 :",null,{"$f":"入力フォーム!B3","v":0}]
[]
[null," 学位論文題目 :"]
[]
[]
[]
[null,"基礎となる学術論文"]
[]
[]
[null,"１．題目 :"]
[]
[]
[null,"  　著者名 :",{"$f":"IF(入力フォーム!B16=\"\", \"\",入力フォーム!B16)","v":""}]
[]
[null," 　 学術雑誌名　巻・号・頁 :",null,null,{"$f":"IF(入力フォーム!B17=\"\", \"\",入力フォーム!B17&\"　\"&入力フォーム!B18&(入力フォーム!B19)&\"：\"&入力フォーム!B20)","v":""}]
[]
[null,null,null,null,"doi:",{"$f":"IF(入力フォーム!B21=\"\", \"\",入力フォーム!B21)","v":""}]
[]
[]
[null," 　 出版（オンライン出版）:",null,null,null,null,"受理: "]
[]
[null," 　 発表年月又は受理年月日（発表予定年月） :"]
[]
[]
[]
[null,"２．題目 :"]
[]
[]
[null," 　 著者名 :",{"$f":"IF(入力フォーム!B30=\"\", \"\",入力フォーム!B30)","v":""}]
[]
[]
[null," 　 学術雑誌名　巻・号・頁 :",null,null,{"$f":"IF(入力フォーム!B31=\"\", \"\",入力フォーム!B31&\"　\"&入力フォーム!B32&(入力フォーム!B33)&\"：\"&入力フォーム!B34)","v":""}]
[]
[null,null,null,null,"doi:",{"$f":"IF(入力フォーム!B35=\"\", \"\",入力フォーム!B35)","v":""}]
[]
[null," 　 出版（オンライン出版）:",null,null,null,null,"受理: "]
[]
[null," 　 発表年月又は受理年月日（発表予定年月） :"]
[]
[]
[]
[null,"３．題目 :"]
[]
[]
[null," 　 著者名 :",{"$f":"IF(入力フォーム!B44=\"\", \"\",入力フォーム!B44)","v":""}]
[]
[]
[null,"  　学術雑誌名　巻・号・頁 :",null,null,{"$f":"IF(入力フォーム!B45=\"\", \"\",入力フォーム!B45&\"　\"&入力フォーム!B46&(入力フォーム!B47)&\"：\"&入力フォーム!B48)","v":""}]
[]
[null,null,null,null,"doi:",{"$f":"IF(入力フォーム!B49=\"\", \"\",入力フォーム!B49)","v":""}]
[]
[null," 　 出版（オンライン出版）:",null,null,null,null,"受理: "]
[]
[null," 　発表年月又は受理年月日（発表予定年月） :"]
[]
[]
["（別紙様式第２号）"]
["論  文  目  録"]
[]
[]
[null,null,null,null,null,null,null,null,null," 氏名 :",null,{"$f":"L5","v":0}]
[]
[null," 学位論文題目 :"]
[]
[]
[]
[null,"基礎となる学術論文"]
[]
[]
[null,"４．題目 :"]
[]
[]
[null,"  　著者名 :",{"$f":"IF(入力フォーム!B58=\"\", \"\",入力フォーム!B58)","v":""}]
[]
[null," 　 学術雑誌名　巻・号・頁 :",null,null,{"$f":"IF(入力フォーム!B59=\"\", \"\",入力フォーム!B59&\"　\"&入力フォーム!B60&(入力フォーム!B61)&\"　\"&入力フォーム!B62)","v":""}]
[]
[null,null,null,null,"doi:",{"$f":"IF(入力フォーム!B63=\"\", \"\",入力フォーム!B63)","v":""}]
[]
[null," 　 出版（オンライン出版）:",null,null,null,null,"受理: "]
[]
[null," 　 発表年月又は受理年月日（発表予定年月） :"]
[]
[]
[]
[null,"５．題目 :"]
[]
[]
[null," 　 著者名 :",{"$f":"IF(入力フォーム!B72=\"\", \"\",入力フォーム!B72)","v":""}]
[]
[null,"  　学術雑誌名　巻・号・頁 :",null,null,{"$f":"IF(入力フォーム!B73=\"\", \"\",入力フォーム!B73&\"　\"&入力フォーム!B74&(入力フォーム!B75)&\"：\"&入力フォーム!B76)","v":""}]
[]
[null,null,null,null,"doi:",{"$f":"IF(入力フォーム!B77=\"\", \"\",入力フォーム!B77)","v":""}]
[]
[null," 　 出版（オンライン出版）:",null,null,null,null,"受理: "]
[]
[null," 　発表年月又は受理年月日（発表予定年月） :"]

{"sheet":"様式2-2","index":4,"n_rows":30,"n_cols":4,"rows_kept":30,"cut":false,"hidden":false,"merged":[[28,3,28,5],[29,2,29,5],[20,2,20,5],[21,3,21,5],[22,2,22,5],[25,2,26,5],[27,2,27,5],[11,2,12,5],[13,2,13,5],[14,3,14,5],[15,2,15,5],[18,2,19,5],[2,0,2,5],[6,2,6,5],[7,3,7,5],[8,2,8,5],[4,2,5,5]]}
[]
[]
["参考論文"]
[]
["１．題目"]
[]
[null,"著書名：",{"$f":"IF(入力フォーム!B92=\"\", \"\",入力フォーム!B92)","v":""}]
[null,"学術雑誌名　巻・号・頁：",null,{"$f":"IF(入力フォーム!B93=\"\", \"\",入力フォーム!B93&\"　\"&入力フォーム!B2&(入力フォーム!B95)&\"：\"&入力フォーム!B96)","v":""}]
[null,"発表年月：",{"$f":"IF(入力フォーム!B97=\"\", \"\",入力フォーム!B97)","v":""}]
[]
[]
["２．題目"]
[]
[null,"著書名：",{"$f":"IF(入力フォーム!B100=\"\", \"\",入力フォーム!B100)","v":""}]
[null,"学術雑誌名　巻・号・頁：",null,{"$f":"IF(入力フォーム!B101=\"\", \"\",入力フォーム!B101&\"　\"&入力フォーム!B102&(入力フォーム!B103)&\"：\"&入力フォーム!B104)","v":""}]
[null,"発表年月：",{"$f":"IF(入力フォーム!B105=\"\", \"\",入力フォーム!B105)","v":""}]
[]
[]
["３．題目"]
[]
[null,"著書名：",{"$f":"IF(入力フォーム!B108=\"\", \"\",入力フォーム!B108)","v":""}]
[null,"学術雑誌名　巻・号・頁：",null,{"$f":"IF(入力フォーム!B109=\"\", \"\",入力フォーム!B109&\"　\"&入力フォーム!B110&(入力フォーム!B111)&\"：\"&入力フォーム!B112)","v":""}]
[null,"発表年月：",{"$f":"IF(入力フォーム!B113=\"\", \"\",入力フォーム!B113)","v":""}]
[]
[]
["４．題目"]
[]
[null,"著書名：",{"$f":"IF(入力フォーム!B116=\"\", \"\",入力フォーム!B116)","v":""}]
[null,"学術雑誌名　巻・号・頁：",null,{"$f":"IF(入力フォーム!B117=\"\", \"\",入力フォーム!B117&\"　\"&入力フォーム!B118&(入力フォーム!B119)&\"：\"&入力フォーム!B120)","v":""}]
[null,"発表年月：",{"$f":"IF(入力フォーム!B121=\"\", \"\",入力フォーム!B121)","v":""}]

{"sheet":"様式3","index":5,"n_rows":6,"n_cols":7,"rows_kept":6,"cut":false,"hidden":false,"merged":[[1,0,1,8],[5,1,5,8],[6,1,6,8],[9,0,9,8],[7,0,8,8]]}
["（様式第３号）"]
["学　位　論　文　要　旨"]
[]
[null,null,null,null,null,"氏名：",{"$f":"入力フォーム!B3","v":0}]
[]
["題目:"]

{"sheet":"様式5(1)","index":6,"n_rows":32,"n_cols":8,"rows_kept":32,"cut":false,"hidden":false,"merged":[[32,1,38,8],[2,7,2,8],[1,0,1,9],[11,1,29,8],[4,2,5,8],[8,2,9,8]]}
["（様式第５号）"]
["共 著 論 文 研 究 要 旨"]
[null,null,null,null,null,null,"氏名：",{"$f":"入力フォーム!B3","v":0}]
[]
[null,"題目:"]
[]
[]
[]
[null,"著書名："]
[]
[null,"研究要旨："]
[]
[]
[]
[]
[]
[]
[]
[]
[]
[]
[]
[]
[]
[]
[]
[]
[]
[]
[]
[]
[null,"申請者の研究範囲："]

{"sheet":"様式5(2)","index":7,"n_rows":32,"n_cols":8,"rows_kept":32,"cut":false,"hidden":false,"merged":[[1,0,1,9],[2,7,2,8],[4,2,5,8],[11,1,29,8],[32,1,38,8],[8,2,9,8]]}
["（様式第５号）"]
["共 著 論 文 研 究 要 旨"]
[null,null,null,null,null,null,"氏名：",{"$f":"入力フォーム!B3","v":0}]
[]
[null,"題目:"]
[]
[]
[]
[null,"著書名："]
[]
[null,"研究要旨："]
[]
[]
[]
[]
[]
[]
[]
[]
[]
[]
[]
[]
[]
[]
[]
[]
[]
[]
[]
[]
[null,"申請者の研究範囲："]

{"sheet":"様式5(3)","index":8,"n_rows":32,"n_cols":8,"rows_kept":32,"cut":false,"hidden":false,"merged":[[32,1,38,8],[1,0,1,9],[2,7,2,8],[4,2,5,8],[11,1,29,8],[8,2,9,8]]}
["（様式第５号）"]
["共 著 論 文 研 究 要 旨"]
[null,null,null,null,null,null,"氏名：",{"$f":"入力フォーム!B3","v":0}]
[]
[null,"題目:"]
[]
[]
[]
[null,"著書名："]
[]
[null,"研究要旨："]
[]
[]
[]
[]
[]
[]
[]
[]
[]
[]
[]
[]
[]
[]
[]
[]
[]
[]
[]
[]
[null,"申請者の研究範囲："]

{"sheet":"様式5(4)","index":9,"n_rows":32,"n_cols":8,"rows_kept":32,"cut":false,"hidden":false,"merged":[[32,1,38,8],[1,0,1,9],[2,7,2,8],[4,2,5,8],[11,1,29,8],[8,2,9,8]]}
["（様式第５号）"]
["共 著 論 文 研 究 要 旨"]
[null,null,null,null,null,null,"氏名：",{"$f":"入力フォーム!B3","v":0}]
[]
[null,"題目:"]
[]
[]
[]
[null,"著書名："]
[]
[null,"研究要旨："]
[]
[]
[]
[]
[]
[]
[]
[]
[]
[]
[]
[]
[]
[]
[]
[]
[]
[]
[]
[]
[null,"申請者の研究範囲："]

{"sheet":"様式5(5)","index":10,"n_rows":32,"n_cols":8,"rows_kept":32,"cut":false,"hidden":false,"merged":[[32,1,38,8],[1,0,1,9],[2,7,2,8],[4,2,5,8],[11,1,29,8],[8,2,9,8]]}
["（様式第５号）"]
["共 著 論 文 研 究 要 旨"]
[null,null,null,null,null,null,"氏名：",{"$f":"入力フォーム!B3","v":0}]
[]
[null,"題目:"]
[]
[]
[]
[null,"著書名："]
[]
[null,"研究要旨："]
[]
[]
[]
[]
[]
[]
[]
[]
[]
[]
[]
[]
[]
[]
[]
[]
[]
[]
[]
[]
[null,"申請者の研究範囲："]

{"sheet":"様式4","index":11,"n_rows":65,"n_cols":9,"rows_kept":65,"cut":false,"hidden":false,"merged":[[14,1,14,5],[30,1,30,5],[17,1,17,5],[18,1,18,5],[19,1,19,5],[22,1,22,5],[23,1,23,5],[26,1,26,5],[27,1,27,5],[24,1,24,5],[25,1,25,5],[28,1,28,5],[29,1,29,5],[31,1,31,5],[32,0,32,5],[33,0,33,5],[35,0,35,5],[36,0,36,5],[63,1,63,5],[52,0,52,5],[64,0,64,5],[34,0,34,5],[61,1,61,5],[62,1,62,5],[50,1,50,5],[39,1,39,5],[40,1,40,5],[41,1,41,5],[42,1,42,5],[43,1,43,5],[44,1,44,5],[37,0,37,5],[38,0,38,5],[45,1,45,5],[46,1,46,5],[47,1,47,5],[48,1,48,5],[49,1,49,5],[58,1,58,5],[59,1,59,5],[60,1,60,5],[51,1,51,5],[53,1,53,5],[54,1,54,5],[55,1,55,5],[56,1,56,5],[57,1,57,5],[1,0,1,5],[20,0,20,5],[21,1,21,5],[8,1,8,5],[15,1,15,5],[16,1,16,5],[5,1,5,5],[6,1,6,5],[7,0,7,5],[4,2,4,3],[4,4,4,5],[9,1,9,5],[10,1,10,5],[11,1,11,5],[12,1,12,5],[13,1,13,5]]}
["（様式第４号）"]
["履　　　　　歴　　　　　書"]
[]
["氏　　名",{"$f":"入力フォーム!B3","v":0},"男","□","女","□"]
["生年月日",null,"年齢"]
["本　　籍"]
["現 住 所"]
["学歴（高等学校卒業以降のものを年代順に記述。研究生についても記述）"]
["年　　月","事　　項",null,null,null,null,null,"（記入例）"]
[null,null,null,null,null,null,null,"〇〇〇高等学校卒業"]
[null,null,null,null,null,null,null,"○○大学○○学部○○学科入学"]
[null,null,null,null,null,null,null,"○○大学大学院○○研究科修士課程○○専攻入学"]
[null,null,null,null,null,null,null,"同上修了"]
[null,null,null,null,null,null,null,"鳥取大学大学院連合農学研究科博士課程○○専攻入学"]
[null,null,null,null,null,null,null,"現在に至る"]
[]
[]
[]
[]
[]
["職　歴（学振の特別研究員についても記述）"]
["年月","所属・職名（研究職については、研究内容の概略もカッコ書きで記述）"]
[null,null,null,null,null,null,null,"（記入例）"]
[null,null,null,null,null,null,null,"1９〇〇年９月","〇〇研究所研究員"]
[null,null,null,null,null,null,null,"　～２０〇〇年１０月","（～～～～～と✖✖関連因子の解析）"]
[null,null,null,null,null,null,null,"20〇〇4年","（独）日本学術振興会 特別研究員"]
[null,null,null,null,null,null,null,"　～20〇〇年３月","（○○○○○○○○に関する研究）"]
[]
[]
[]
[]
[]
["加入学会名"]
[]
[]
[]
[]
[]
["学会発表及び社会における活動等"]
["年　月　日","事　　項"]
[null,null,null,null,null,null,null,"（記入例）"]
[null,null,null,null,null,null,null,"2020-03-03","日本〇〇学会　第５８回〇〇大会（鳥取市）、口頭発表"]
[null,null,null,null,null,null,null,"2024-02-02","The 10th International Gongress on Agricultural Sciences (Edinburgh, UK), Oral presentation"]
[]
[]
[]
[]
[]
[]
[]
[]
[]
["賞　罰　及　び　資　格"]
["年　月　日","事　　項"]
[]
[]
[]
[]
[]
[]
[]
[]
[]
[]
["・\t西暦で年代順に記入してください。学歴・職歴欄の現在のものについては最後に「現在に至る」と記載すること。"]

{"sheet":"様式12","index":12,"n_rows":44,"n_cols":11,"rows_kept":44,"cut":false,"hidden":false,"merged":[[43,5,43,7],[37,7,37,10],[36,9,36,10],[23,6,23,7],[2,1,2,11],[12,1,14,11],[28,3,32,10],[18,4,21,10],[4,8,4,11]]}
["（様式第１２号）"]
[]
[null,"博士学位論文の公表にかかる申立書"]
[]
[null,null,null,null,null,null,null,null,{"$f":"入力フォーム!B2","v":"00:00:00"}]
[]
[]
[null,"鳥取大学大学院連合農学研究科長　　殿"]
[]
[null,null,null,null,null,null,null,"氏　名：",null,null,{"$f":"入力フォーム!B3","v":0}]
[null,null,null,null,null,null,null,"（署　名）"]
[]
[null,"  鳥取大学学位規則第１１条の規定に定める博士学位論文の公表について、同条第２項の規定に基づき、下記の理由により、学位授与の日から３年間、全文に代えてその内容を要約したものを公表することについて、承認願います。"]
[]
[]
[]
[null,null,null,null,null,"記"]
[]
[null,"１．学位論文名："]
[]
[]
[]
[]
[null,"２．審査委員（主査）氏名：",null,null,null,null,{"$f":"入力フォーム!B9","v":0}]
[]
[]
[]
[null,"３．学位論文全文を公表できない理由："]
[]
[]
[]
[]
[]
[]
[null,"（確認欄）"]
[]
[null,"上記の申立内容を確認しました。　主指導（推薦）教員氏名：",null,null,null,null,null,null,null,{"$f":"入力フォーム!B9","v":0}]
[null,null,null,null,null,null,"（署 名）"]
[]
[]
[]
[null,"（事務記載欄）"]
[]
[null,null,null,"学位授与年月日："]

{"sheet":"様式6(1)","index":13,"n_rows":50,"n_cols":14,"rows_kept":50,"cut":false,"hidden":false,"merged":[[49,0,53,18],[31,7,31,16],[18,2,19,17],[13,2,15,17],[2,0,2,18],[29,1,29,3],[4,13,4,18],[9,7,9,10],[8,11,8,18],[9,11,9,18],[23,4,24,17],[10,9,11,18],[10,7,10,8]]}
["（様式第６号）"]
[]
["承     　諾  　  書"]
[]
[null,null,null,null,null,null,null,null,null,null,null,"年月日：",null,{"$f":"入力フォーム!B2","v":"00:00:00"}]
[]
[null,"鳥取大学大学院連合農学研究科長　殿"]
[]
[null,null,null,null,null,null,null,"主指導教員氏名：",null,null,null,{"$f":"入力フォーム!B9","v":0}]
[null,null,null,null,null,null,null,"　（署　名）"]
[null,null,null,null,null,null,null,"所属・職名：",null,{"$f":"入力フォーム!B10&\"・\"&入力フォーム!B11","v":"・"}]
[]
[]
[null,"論文題目："]
[]
[]
[]
[]
[null,"著者名：",{"$f":"IF('様式2-1'!C17=\"\", \"\",'様式2-1'!C17)","v":""}]
[]
[]
[]
[]
[null,"学術雑誌名　巻・号・頁",null,null,{"$f":"IF('様式2-1'!E19=\"\", \"\",'様式2-1'!E19)","v":""}]
[]
[]
[]
[]
[]
[null,"出版（オンライン出版）:",null,null,{"$f":"IF('様式2-1'!E24=\"\", \"\",'様式2-1'!E24)","v":""},null,"受理: ",{"$f":"IF('様式2-1'!H24=\"\", \"\",'様式2-1'!H24)","v":""}]
[]
[null,"発表年月又は受理年月日（発表予定年月） :",null,null,null,null,null,{"$f":"IF('様式2-1'!H26=\"\", \"\",'様式2-1'!H26)","v":""}]
[]
[]
[]
[]
[]
[]
[]
[]
[]
[]
[]
[]
[]
[]
[]
[]
[]
[{"$f":"\"上記の論文を　\"&入力フォーム!B3&\"氏　が，鳥取大学大学院連合農学研究科へ博士（農学）の学位論文の基礎となる学術論文として提出することについて、共著者の承諾を得ています。 なお，当該論文は，学位論文の基礎となる学術論文として過去において使用せず，将来においても使用しないことについての承諾も得ています。\"","v":"上記の論文を　氏　が，鳥取大学大学院連合農学研究科へ博士（農学）の学位論文の基礎となる学術論文として提出することについて、共著者の承諾を得ています。 なお，当該論文は，学位論文の基礎となる学術論文として過去において使用せず，将来においても使用しないことについての承諾も得ています。"}]

{"sheet":"様式6(2)","index":14,"n_rows":50,"n_cols":14,"rows_kept":50,"cut":false,"hidden":false,"merged":[[29,1,29,3],[31,7,31,16],[49,0,53,18],[18,2,19,17],[23,4,24,17],[13,2,15,17],[2,0,2,18],[4,13,4,18],[8,11,8,18],[9,7,9,10],[9,11,9,18],[10,7,10,8],[10,9,11,18]]}
["（様式第６号）"]
[]
["承     　諾  　  書"]
[]
[null,null,null,null,null,null,null,null,null,null,null,"年月日：",null,{"$f":"入力フォーム!B2","v":"00:00:00"}]
[]
[null,"鳥取大学大学院連合農学研究科長　殿"]
[]
[null,null,null,null,null,null,null,"主指導教員氏名：",null,null,null,{"$f":"入力フォーム!B9","v":0}]
[null,null,null,null,null,null,null,"　（署　名）"]
[null,null,null,null,null,null,null,"所属・職名：",null,{"$f":"入力フォーム!B10&\"・\"&入力フォーム!B11","v":"・"}]
[]
[]
[null,"論文題目："]
[]
[]
[]
[]
[null,"著者名：",{"$f":"IF('様式2-1'!C33=\"\", \"\",'様式2-1'!C33)","v":""}]
[]
[]
[]
[]
[null,"学術雑誌名　巻・号・頁",null,null,{"$f":"IF('様式2-1'!E36=\"\", \"\",'様式2-1'!E36)","v":""}]
[]
[]
[]
[]
[]
[null,"出版（オンライン出版）:",null,null,{"$f":"IF('様式2-1'!E40=\"\", \"\",'様式2-1'!E40)","v":""},null,"受理: ",{"$f":"IF('様式2-1'!H40=\"\", \"\",'様式2-1'!H40)","v":""}]
[]
[null,"発表年月又は受理年月日（発表予定年月） :",null,null,null,null,null,{"$f":"IF('様式2-1'!H42=\"\", \"\",'様式2-1'!H42)","v":""}]
[]
[]
[]
[]
[]
[]
[]
[]
[]
[]
[]
[]
[]
[]
[]
[]
[]
[{"$f":"\"上記の論文を　\"&入力フォーム!B3&\"氏　が，鳥取大学大学院連合農学研究科へ博士（農学）の学位論文の基礎となる学術論文として提出することについて、共著者の承諾を得ています。 なお，当該論文は，学位論文の基礎となる学術論文として過去において使用せず，将来においても使用しないことについての承諾も得ています。\"","v":"上記の論文を　氏　が，鳥取大学大学院連合農学研究科へ博士（農学）の学位論文の基礎となる学術論文として提出することについて、共著者の承諾を得ています。 なお，当該論文は，学位論文の基礎となる学術論文として過去において使用せず，将来においても使用しないことについての承諾も得ています。"}]

{"sheet":"様式6(3)","index":15,"n_rows":50,"n_cols":14,"rows_kept":50,"cut":false,"hidden":false,"merged":[[29,1,29,3],[31,7,31,16],[49,0,53,18],[18,2,19,17],[23,4,24,17],[13,2,15,17],[2,0,2,18],[4,13,4,18],[8,11,8,18],[9,7,9,10],[9,11,9,18],[10,7,10,8],[10,9,11,18]]}
["（様式第６号）"]
[]
["承     　諾  　  書"]
[]
[null,null,null,null,null,null,null,null,null,null,null,"年月日：",null,{"$f":"入力フォーム!B2","v":"00:00:00"}]
[]
[null,"鳥取大学大学院連合農学研究科長　殿"]
[]
[null,null,null,null,null,null,null,"主指導教員氏名：",null,null,null,{"$f":"入力フォーム!B9","v":0}]
[null,null,null,null,null,null,null,"　（署　名）"]
[null,null,null,null,null,null,null,"所属・職名：",null,{"$f":"入力フォーム!B10&\"・\"&入力フォーム!B11","v":"・"}]
[]
[]
[null,"論文題目："]
[]
[]
[]
[]
[null,"著者名：",{"$f":"IF('様式2-1'!C49=\"\", \"\",'様式2-1'!C49)","v":""}]
[]
[]
[]
[]
[null,"学術雑誌名　巻・号・頁",null,null,{"$f":"IF('様式2-1'!E52=\"\", \"\",'様式2-1'!E52)","v":""}]
[]
[]
[]
[]
[]
[null,"出版（オンライン出版）:",null,null,{"$f":"IF('様式2-1'!E56=\"\", \"\",'様式2-1'!E56)","v":""},null,"受理: ",{"$f":"IF('様式2-1'!H56=\"\", \"\",'様式2-1'!H56)","v":""}]
[]
[null,"発表年月又は受理年月日（発表予定年月） :",null,null,null,null,null,{"$f":"IF('様式2-1'!H58=\"\", \"\",'様式2-1'!H58)","v":""}]
[]
[]
[]
[]
[]
[]
[]
[]
[]
[]
[]
[]
[]
[]
[]
[]
[]
[{"$f":"\"上記の論文を　\"&入力フォーム!B3&\"氏　が，鳥取大学大学院連合農学研究科へ博士（農学）の学位論文の基礎となる学術論文として提出することについて、共著者の承諾を得ています。 なお，当該論文は，学位論文の基礎となる学術論文として過去において使用せず，将来においても使用しないことについての承諾も得ています。\"","v":"上記の論文を　氏　が，鳥取大学大学院連合農学研究科へ博士（農学）の学位論文の基礎となる学術論文として提出することについて、共著者の承諾を得ています。 なお，当該論文は，学位論文の基礎となる学術論文として過去において使用せず，将来においても使用しないことについての承諾も得ています。"}]

{"sheet":"様式6(4)","index":16,"n_rows":50,"n_cols":14,"rows_kept":50,"cut":false,"hidden":false,"merged":[[29,1,29,3],[31,7,31,16],[49,0,53,18],[18,2,19,17],[23,4,24,17],[13,2,15,17],[2,0,2,18],[4,13,4,18],[8,11,8,18],[9,7,9,10],[9,11,9,18],[10,7,10,8],[10,9,11,18]]}
["（様式第６号）"]
[]
["承     　諾  　  書"]
[]
[null,null,null,null,null,null,null,null,null,null,null,"年月日：",null,{"$f":"入力フォーム!B2","v":"00:00:00"}]
[]
[null,"鳥取大学大学院連合農学研究科長　殿"]
[]
[null,null,null,null,null,null,null,"主指導教員氏名：",null,null,null,{"$f":"入力フォーム!B9","v":0}]
[null,null,null,null,null,null,null,"　（署　名）"]
[null,null,null,null,null,null,null,"所属・職名：",null,{"$f":"入力フォーム!B10&\"・\"&入力フォーム!B11","v":"・"}]
[]
[]
[null,"論文題目："]
[]
[]
[]
[]
[null,"著者名：",{"$f":"IF('様式2-1'!C77=\"\", \"\",'様式2-1'!C77)","v":""}]
[]
[]
[]
[]
[null,"学術雑誌名　巻・号・頁",null,null,{"$f":"IF(入力フォーム!E79=\"\", \"\",入力フォーム!E79)","v":""}]
[]
[]
[]
[]
[]
[null,"出版（オンライン出版）:",null,null,{"$f":"IF('様式2-1'!E83=\"\", \"\",'様式2-1'!E83)","v":""},null,"受理: ",{"$f":"IF('様式2-1'!H83=\"\", \"\",'様式2-1'!H83)","v":""}]
[]
[null,"発表年月又は受理年月日（発表予定年月） :",null,null,null,null,null,{"$f":"IF('様式2-1'!H85=\"\", \"\",'様式2-1'!H85)","v":""}]
[]
[]
[]
[]
[]
[]
[]
[]
[]
[]
[]
[]
[]
[]
[]
[]
[]
[{"$f":"\"上記の論文を　\"&入力フォーム!B3&\"氏　が，鳥取大学大学院連合農学研究科へ博士（農学）の学位論文の基礎となる学術論文として提出することについて、共著者の承諾を得ています。 なお，当該論文は，学位論文の基礎となる学術論文として過去において使用せず，将来においても使用しないことについての承諾も得ています。\"","v":"上記の論文を　氏　が，鳥取大学大学院連合農学研究科へ博士（農学）の学位論文の基礎となる学術論文として提出することについて、共著者の承諾を得ています。 なお，当該論文は，学位論文の基礎となる学術論文として過去において使用せず，将来においても使用しないことについての承諾も得ています。"}]

{"sheet":"様式6(5)","index":17,"n_rows":50,"n_cols":14,"rows_kept":50,"cut":false,"hidden":false,"merged":[[29,1,29,3],[31,7,31,16],[49,0,53,18],[18,2,19,17],[23,4,24,17],[13,2,15,17],[2,0,2,18],[4,13,4,18],[8,11,8,18],[9,7,9,10],[9,11,9,18],[10,7,10,8],[10,9,11,18]]}
["（様式第６号）"]
[]
["承     　諾  　  書"]
[]
[null,null,null,null,null,null,null,null,null,null,null,"年月日：",null,{"$f":"入力フォーム!B2","v":"00:00:00"}]
[]
[null,"鳥取大学大学院連合農学研究科長　殿"]
[]
[null,null,null,null,null,null,null,"主指導教員氏名：",null,null,null,{"$f":"入力フォーム!B9","v":0}]
[null,null,null,null,null,null,null,"　（署　名）"]
[null,null,null,null,null,null,null,"所属・職名：",null,{"$f":"入力フォーム!B10&\"・\"&入力フォーム!B11","v":"・"}]
[]
[]
[null,"論文題目："]
[]
[]
[]
[]
[null,"著者名：",{"$f":"IF('様式2-1'!C92=\"\", \"\",'様式2-1'!C92)","v":""}]
[]
[]
[]
[]
[null,"学術雑誌名　巻・号・頁",null,null,{"$f":"IF('様式2-1'!E94=\"\", \"\",'様式2-1'!E94)","v":""}]
[]
[]
[]
[]
[]
[null,"出版（オンライン出版）:",null,null,{"$f":"IF('様式2-1'!E98=\"\", \"\",'様式2-1'!E98)","v":""},null,"受理: ",{"$f":"IF('様式2-1'!H98=\"\", \"\",'様式2-1'!H98)","v":""}]
[]
[null,"発表年月又は受理年月日（発表予定年月） :",null,null,null,null,null,{"$f":"IF('様式2-1'!H100=\"\", \"\",'様式2-1'!H100)","v":""}]
[]
[]
[]
[]
[]
[]
[]
[]
[]
[]
[]
[]
[]
[]
[]
[]
[]
[{"$f":"\"上記の論文を　\"&入力フォーム!B3&\"氏　が，鳥取大学大学院連合農学研究科へ博士（農学）の学位論文の基礎となる学術論文として提出することについて、共著者の承諾を得ています。 なお，当該論文は，学位論文の基礎となる学術論文として過去において使用せず，将来においても使用しないことについての承諾も得ています。\"","v":"上記の論文を　氏　が，鳥取大学大学院連合農学研究科へ博士（農学）の学位論文の基礎となる学術論文として提出することについて、共著者の承諾を得ています。 なお，当該論文は，学位論文の基礎となる学術論文として過去において使用せず，将来においても使用しないことについての承諾も得ています。"}]

{"sheet":"様式15","index":18,"n_rows":46,"n_cols":8,"rows_kept":46,"cut":false,"hidden":false,"merged":[[42,5,42,8],[35,2,36,9],[3,0,3,9],[12,3,16,8],[18,2,18,8],[25,2,25,9],[5,7,5,9],[9,6,9,8],[10,6,10,8]]}
["（様式１５）"]
[]
[]
["博士学位論文のインターネット公表に関する届出書"]
[]
[null,null,null,null,null,null,null,{"$f":"入力フォーム!B2","v":"00:00:00"}]
[]
["鳥取大学大学院連合農学研究科長"]
[]
[null,null,null,null,null,"氏　名",{"$f":"入力フォーム!B3","v":0}]
[null,null,null,null,null,"（署名）"]
[]
[null,null,"学位論文名："]
[]
[]
[]
[]
[]
[null,null,"鳥取大学学位規則第10条及び第11条に定める博士学位論文の公表について、以下のとおり届け出ます。"]
[]
[null,"１．全文の公表について"]
[null,null,"以下のいずれかにチェックをしてください（□の中に✓を記入）"]
[]
[null,null,"学位授与の日から１年以内に博士学位論文の全文をインターネット公表する。"]
[]
[null,null,"やむを得ない理由により、学位授与の日から３年間、博士学位論文の全文に代えて要約をインターネット公表する"]
[]
[null,null,"「博士学位論文の公表にかかる申立書（様式第１２号）」を提出してください。"]
[]
[]
[null,"２．論文の要旨（様式３）の公表について"]
[null,null,"以下のいずれかにチェックをしてください（□の中に✓を記入）"]
[]
[null,null,"学位授与の日から3カ月以内に博士学位論文の要旨（様式３）をインターネット公表する。"]
[]
[null,null,"やむを得ない理由により、論文全文を公表するまでの間、博士学位論文の要旨（様式３）を公表せず、一部割愛等した要旨を公表する。"]
[]
[]
[]
[null,null,"【主指導(推薦)教員確認欄】"]
[null,null,null,"上記の届出内容を確認しました。"]
[null,null,null,"主指導(推薦)教員氏名：",null,null,{"$f":"入力フォーム!B9","v":0}]
[null,null,null,"（署名）"]
[]
[]
[null,null,"＊主指導(推薦)教員確認欄に必ず署名してもらってください。"]